Cogmind - Beta 13 @@@ ROGUE MODE // 2024.03.21 @ 14:57:33 Player: Lazuli Result: Destroyed by G-34 Mercenary with Small Laser Performance ------------- Evolutions (0) 0 Regions Visited (1) 200 Robots Destroyed (9) 45 Value Destroyed (288) 288 Prototype IDs (0) 0 Alien Tech Used (0) 0 Bonus (0) 0 TOTAL SCORE: 533 Bonus ------- None Cogmind --------- Core Integrity 0/250 Matter 213/300 Energy 114/250 System Corruption 0% Temperature Hot (270) Movement Walking (120) Location -10/Materials Parts ------- > --- POWER (1) -------- Ion Engine > --- PROPULSION (2) --- Aluminum Leg Aluminum Leg > --- UTILITY (2) ------ Targeting Computer Light Armor Plating > --- WEAPON (2) ------- Medium Laser Beam Cannon > --- INVENTORY (5) ---- Aluminum Leg Heat Sink Small Storage Unit High-capacity Matter Pod (200) ECM Suite Peak State ------------ > --- POWER ------------ Light Ion Engine > --- PROPULSION ------- Aluminum Leg Aluminum Leg > --- UTILITY ---------- Small Storage Unit Targeting Computer > --- WEAPON ----------- Assault Rifle Light Assault Rifle > --- INVENTORY -------- Ion Engine Wheel Compact Wheel Medium Laser [Rating: 7] Favorites ----------- Power Light Ion Engine Engine Light Ion Engine Propulsion Aluminum Leg Leg Aluminum Leg Utility Small Storage Unit Storage Small Storage Unit Processor Targeting Computer Protection Light Armor Plating Weapon Assault Rifle Energy Gun Medium Laser Energy Cannon Beam Cannon Ballistic Gun Assault Rifle Build | -11 -10 ------- Run | Yrd Mat Slots Evolved . | . . Power . | . . Propulsion . | . . Utility . | . . Weapon . | . . Parts Attached 14 | 6 8 Power 3 | 1 2 Engine 3 | 1 2 Core . | . . Reactor . | . . Propulsion 4 | 2 2 Treads . | . . Leg 4 | 2 2 Wheel . | . . Hover . | . . Flight . | . . Utility 3 | 1 2 Device . | . . Storage 1 | 1 . Processor 1 | . 1 Hackware . | . . Protection 1 | . 1 Artifact . | . . Weapon 4 | 2 2 Energy Gun 1 | . 1 Energy Cannon 1 | . 1 Ballistic Gun 2 | 2 . Ballistic Cannon . | . . Launcher . | . . Special Weapon . | . . Impact Weapon . | . . Slashing Weapon . | . . Piercing Weapon . | . . Special Melee Weapon . | . . Unidentified Prototypes . | . . Parts Lost 1 | . 1 Power . | . . Propulsion . | . . Utility . | . . Weapon 1 | . 1 Highest Loss Streak 1 | . 1 To Critical Strikes . | . . Average Slot Usage (%) 99 | . 99 Engine 14 | . 14 Leg 28 | . 28 Storage 13 | . 13 Processor 13 | . 13 Ballistic Gun 26 | . 26 Naked Turns . | . . Heaviest Build 15 | 11 15 Greatest Support 20 | 20 20 Greatest Overweight (x) 3 | 3 . Average Overweight (x) . | . . Largest Inventory Capacity 8 | 8 8 Average Capacity 7 | 7 7 Most Carried 8 | 4 8 Average Carried 6 | 1 6 Final Capacity 8 | 8 5 Final Carried 5 | 4 5 Class Distribution -------------------- 100% | Mutant Dominant Class ---------------- Mutant | -10/Materials Resources | -11 -10 ----------- Run | Yrd Mat Matter Collected 574 | 246 328 Remotely . | . . Salvage Created 330 | . 330 Parts 25 | . 25 Haulers Intercepted . | . . Recyclers Shooed . | . . Parts Field Recycled . | . . Retrieved Matter . | . . Parts Self-Destructed . | . . Prevented . | . . Kills | -11 -10 ------- Run | Yrd Mat Combat Hostiles Destroyed 8 | . 8 Guns 8 | . 8 Classes Destroyed 2 | . 2 Watcher 1 | . 1 Grunt 8 | . 8 Best Kill Streak 3 | . 3 Combat Bots Only 3 | . 3 Max Kills in Single Turn 1 | . 1 Gunslinging . | . . Exploded . | . . Melee . | . . Uniques/NPCs Destroyed . | . . Combat | -11 -10 -------- Run | Yrd Mat Hostile Shots Fired 61 | . 61 Missed 14 | . 14 Damage Taken 697 | . 697 Core 256 | . 256 Absorbed by Shields . | . . Core Remaining (%) 100 | 100 . Volleys Fired 36 | . 36 Largest 2 | . 2 Hottest 110 | . 110 Shots Fired 72 | . 72 Gun 68 | . 68 Cannon 4 | . 4 Launcher . | . . Special . | . . Kinetic 62 | . 62 Thermal 10 | . 10 Explosive . | . . Electromagnetic . | . . Robot Hit Streak 12 | . 12 Robot Miss Streak 2 | . 2 Penetration Max . | . . Secondary Targets . | . . Shots Hit Robots 55 | . 55 Core Hits 19 | . 19 Critical Kills . | . . Critical Parts Destroyed . | . . Critical Strikes . | . . Melee Attacks . | . . Impact . | . . Slashing . | . . Piercing . | . . Sneak Attacks . | . . Combat Hostiles . | . . Follow-up Attacks . | . . Damage Inflicted 608 | . 608 Guns 557 | . 557 Cannons 51 | . 51 Explosions . | . . Melee . | . . Ramming . | . . Kinetic 506 | . 506 Thermal 102 | . 102 Explosive . | . . Electromagnetic . | . . Impact . | . . Slashing . | . . Piercing . | . . Highest Corruption . | . . Average Corruption . | . . Corruption Purged . | . . Corruption Blocked . | . . Overload Shots . | . . Overflow Damage . | . . Projectiles . | . . Explosions . | . . Melee . | . . Knockbacks . | . . Impact . | . . Kinetic . | . . Secondary . | . . Self-Inflicted Damage . | . . Shots . | . . Rammed . | . . Targets Rammed . | . . Kicked . | . . Crushed . | . . Highest Temperature 264 | . 264 Average Temperature 43 | . 43 Received Heat Transfer 339 | . 339 Siege Activations . | . . Robots Corrupted . | . . Combat Hostiles . | . . Parts Fried . | . . Impact Corruptions . | . . Robots Melted . | . . Combat Hostiles . | . . Parts Melted . | . . Heat Transferred 259 | . 259 Parts Sabotaged . | . . Parts Stolen . | . . Parts Stripped . | . . Power Chain Reactions . | . . Alert | -11 -10 ------- Run | Yrd Mat Peak Influence 167 | . 167 Initial . | . . Average 64 | . 70 Maximum Alert Level . | . . Low Security (%) 100 | 100 100 Level 1 . | . . Level 2 . | . . Level 3 . | . . Level 4 . | . . Level 5 . | . . High Security . | . . Max Security . | . . Squads Dispatched 3 | . 3 Investigation 2 | . 2 Extermination . | . . Reinforcement 1 | . 1 Assault . | . . Garrison . | . . Intercept . | . . Searches Triggered . | . . Construction Impeded . | . . Haulers Reinforced . | . . Active Scanning Responses . | . . Cargo Convoy Interrupts . | . . Stealth | -11 -10 --------- Run | Yrd Mat Distress Signals . | . . Communications Jammed . | . . Distress Signals . | . . Times Spotted 18 | . 18 Peak Tracking Total 5 | . 5 Tactical Retreats 2 | . 2 Traps | -11 -10 ------- Run | Yrd Mat Traps Triggered 2 | . 2 Indirectly . | . . Trap Hack Attempts . | . . Triggered . | . . Disarmed . | . . Reprogrammed . | . . Reused . | . . Traps Extracted . | . . Installed . | . . Triggered . | . . Machines | -11 -10 ---------- Run | Yrd Mat Machines Disabled . | . . Max in Single Turn . | . . Machines Repaired . | . . Machines Dismantled . | . . Machines Sabotaged . | . . Overloaded Fab Kills . | . . Hacking | -11 -10 --------- Run | Yrd Mat Machines Accessed 3 | . 3 Terminals 2 | . 2 Fabricators . | . . Repair Stations . | . . Recycling Units 1 | . 1 Scanalyzers . | . . Garrison Access . | . . Total Hacks 5 | . 5 Successful 1 | . 1 Failed 4 | . 4 Catastrophic 1 | . 1 Database Lockouts . | . . Manual . | . . Terminals 2 | . 2 Fabricators . | . . Repair Stations . | . . Recycling Units 3 | . 3 Scanalyzers . | . . Garrison Access . | . . Terminal Hacks . | . . Fabricator Hacks . | . . Repair Station Hacks . | . . Recycling Unit Hacks 1 | . 1 Report Inventory 1 | . 1 Scanalyzer . | . . Garrison Access Hacks . | . . Unauthorized Hacks . | . . Terminals . | . . Fabricators . | . . Repair Stations . | . . Recycling Units . | . . Scanalyzers . | . . Garrison Access . | . . Data Cores Recovered . | . . Used . | . . Hacking Detections 3 | . 3 Full Trace Events . | . . Feedback Events . | . . Feedback Blocked . | . . Robot Schematics Acquired . | . . Robots Built . | . . Authchips . | . . Time . | . . Total Robot Build Rating . | . . Part Schematics Acquired . | . . Parts Built . | . . Authchips . | . . Time . | . . Total Part Build Rating . | . . Parts Repaired . | . . Time . | . . Parts Recycled . | . . Recycled Matter . | . . Retrieved Matter . | . . Retrieved Components . | . . Parts Scanalyzed . | . . Part Schematics Acquired . | . . Parts Damaged . | . . Bothacking | -11 -10 ------------ Run | Yrd Mat Used RIF Installer . | . . Robots Hacked . | . . Non-combat . | . . Combat . | . . Robot Hacks Applied . | . . Relay Couplers Released . | . . Fabnet Peak Effective % . | . . Robots Rewired . | . . Allies Hacked . | . . Hacks Repelled . | . . Allies | -11 -10 -------- Run | Yrd Mat Total Allies . | . . Largest Group . | . . Highest-Rated Group . | . . Highest-Rated Ally . | . . Total Orders . | . . Ally Attacks . | . . Total Damage . | . . Kills . | . . Allies Corrupted . | . . Allies Melted . | . . Intel | -11 -10 ------- Run | Yrd Mat Robot Analysis Total . | . . Derelict Logs Recovered . | . . Drone Launches . | . . Drone Recoveries . | . . Exploration | -11 -10 ------------- Run | Yrd Mat Turns Passed 750 | 66 684 Spaces Moved 466 | 44 422 Core 10 | 10 . Treads . | . . Legs 456 | 34 422 Wheels . | . . Hover . | . . Flight . | . . Fastest Speed 50 | 50 120 Average Speed 120 | 122 120 Slowest Speed 200 | 200 120 Overloaded Moves . | . . Propulsion Burnouts . | . . Robots Hopped . | . . Cave-ins Triggered . | . . Exploration Rate (%) 31 | 4 59 Regions Visited 1 Branch Regions . Pre-discovered Areas . | . . Known Exits Taken . | . . Unknown Exits Taken 1 | 1 . Scrap Searched . | . . Spaces Dug . | . . Terrain Destroyed . | . . Melee . | . . Projectile . | . . AOE . | . . Terrain Rammed . | . . Walls Destroyed . | . . Machines Disabled . | . . Actions | -11 -10 --------- Run | Yrd Mat Total 589 | 53 536 Wait 54 | . 54 Move 465 | 43 422 Hop . | . . Pick Up 11 | 4 7 Fast Attach 8 | 6 2 Attach 2 | . 2 Detach 2 | . 2 Swap 4 | . 4 Drop 7 | . 7 Fire 36 | . 36 Melee . | . . Ram . | . . Kick . | . . Crush . | . . Escape Stasis . | . . Rewire . | . . Trap . | . . Miscellaneous . | . . Route ------- -11/Scrapyard -10/Materials (discovered 1 exit: [*Mat]) History --------- Turn | Location | Event 20 | -11/Scrapyard | Discovered new exit (range 15) 67 | -11/Scrapyard | Entered Materials 241 | -10/Materials | Core integrity fell below 50% 267 | -10/Materials | Discovered new exit (range 3) 308 | -10/Materials | Build established: Mutant 725 | -10/Materials | Core integrity fell below 20% 751 | -10/Materials | Destroyed by G-34 Mercenary with Small Laser Last Messages --------------- 00501_ Acquired 33 matter. 00503_ Acquired Aluminum Leg. 00505_ K-01 Serf collects debris. 00514_ Triggered Alarm Trap. 00514_ An alarm sounds. 00514_ ALERT: Alarm triggered, dispatching investigation squad. 00521_ K-01 Serf collects debris. 00527_ G-34 Mercenary destroyed. 00570_ Dropped Aluminum Leg. 00572_ Acquired 32 matter. 00659_ Dropped Lgt. Ion Engine. 00676_ K-01 Serf cleans the Electrolysis Chamber. 00721_ Lgt. Assault Rifle destroyed. 00726_ G-34 Mercenary destroyed. 00728_ K-01 Serf cleans the Terminal. 00733_ Dropped Lgt. Ion Engine. 00735_ Acquired Beam Cannon. 00738_ K-01 Serf collects debris. Map ----- +----------------------------------------------------+ | ????????????????#### ########### ]] """ #??# | | ????????????????# # ]] """ #??# """ | | ????????????????# + ]| #??# """" | | ????????????????# # """ #??# """" | | ????????????????####+####### # """ #??# """" | | ?????????????????# #??# # """ #??# """ | | ?????????????????# """ #??# # #??# == | | ?????????????????# """ #??# #################+# | | ?????????????????# """ #??# ![ | | ?????????????????# #??# | | ?????????????????# #??# | | ?????????????????#####+##??### ################### | | ?????????????????????# #?????# #????????# | | ?????????????????????# #?????# #????????# """ | | ??????????##########?# #?????# #????????# """ | | ??????????# #?# #?????# #????????# """ " | | ??????????# #?# #?????# #????????# "R | | ??????????# =### ###???# #????????# "" | | ??????????# # ##### #/####+??# | | ??????????# # #?#########+ | | ??????????# + T #??????# | | ??????????# # #??????# | | ??????????# # ########## #??????# | | ??????????# ## ###########? #??????# # | | ??????????#######+### #[ % #?? #??????# # | | ????############ #@= ] *#???#??????# # | | ????# %g= ! k/ +??????# # | | ????# ###### #! k # #??????# | | ????# #?#####/#################??????????# | | ????# * #?# #??????????????????????# | | ????# #?# #??????????????????????##+## | | ????### ###?# """ """ #??????????????????????# | | ??????# ????# """ """ #??????????????????????# | | ??????# ????# """ """ #??????????????????????# | | ??????# ????# #??????????????????????# | | ??????# ????# #??????????????????????##### | | ??????# ????# =#??????????????????????????? | | ??????# ????###########??????????????????????????? | | ??????# ?????????????????????????????????????????? | | ??????#??????????????????????????????????????????? | | ?????????????????????????????????????????????????? | | ?????????????????????????????????????????????????? | | ?????????????????????????????????????????????????? | | ?????????????????????????????????????????????????? | | ?????????????????????????????????????????????????? | | ?????????????????????????????????????????????????? | | ?????????????????????????????????????????????????? | | ?????????????????????????????????????????????????? | | ?????????????????????????????????????????????????? | | ?????????????????????????????????????????????????? | +----------------------------------------------------+ Best States ------------- Heat Dissipation 25 Energy Generation 10 Energy Capacity 250 Matter Stores 300 Matter Capacity 300 Sight Range 16 Terrain Scan Density 10 Armor Coverage 150 Evasion (%) 55 Targeting Accuracy 5 Item Schematics ----------------- None Robot Schematics ------------------ None Fabricated ------------ Nothing Alien Tech Used ----------------- None Achievements -------------- None Challenges ------------ None Game ------ Seed ThunderZioniteShotgun Manual? 0 Play Time 00:15:10 Cumulative 40.1 hours Start 2024.03.21 @ 13:30:17 End 2024.03.21 @ 14:57:33 Sessions 1 Manual Loads 0 Difficulty Rogue Special Mode None Game No. 16 Rogue 15 Adventurer 1 Explorer 0 Win Type - Total 0 Types 0/0/0/0/0/0/0/0/0 Lore% 9 Gallery% 29 Achievement% 22 Wizard Run 0 Options --------- Layout 2 ASCII 0 Keyboard 1 Movement Numpad Keybinds 0 Fullscreen 1 Font 24/Terminus Map View 50x44 Zoom Use 0% Tactical HUD 1 Map Filters NONE Filters LOW_CONTRAST(13,24,33) Steam 1 RUN: e5e28b56-5799-4dac-96d0-9337c65304d6